bitfinex/quotes_BTCUSD_20250222
["timestamp","ask_amount","ask_price","bid_price","bid_amount"]
[1740204383316,0.05756909,96700.0,96693.0,0.00688436]
[1740204383539,0.01051909,96700.0,96693.0,0.00688436]
[1740204383773,0.01051909,96700.0,96692.0,0.155131]
[1740204383981,0.01051909,96700.0,96694.0,0.00688436]
[1740204384182,0.01251909,96700.0,96692.0,0.155131]
[1740204384359,0.01251909,96700.0,96695.0,0.00688436]
[1740204384559,0.01251909,96700.0,96693.0,0.155129]
[1740204384931,0.01251909,96700.0,96696.0,0.00688436]
[1740204385138,0.01251909,96700.0,96693.0,0.155129]
[1740204385245,0.01751909,96700.0,96690.0,0.10833964]
[1740204385457,0.01751909,96700.0,96692.0,0.15513]
[1740204385669,0.01451909,96700.0,96691.0,0.00688436]
[1740204385892,0.01751909,96700.0,96694.0,0.155128]
[1740204386117,0.01751909,96700.0,96699.0,0.15512]
[1740204386269,0.01751909,96700.0,96697.0,0.155122]
[1740204386471,0.01351909,96700.0,96697.0,0.155122]
[1740204386675,0.01351909,96700.0,96698.0,0.00688436]
[1740204386906,0.01551909,96700.0,96698.0,0.00688436]
[1740204387340,0.01651909,96700.0,96698.0,0.15512]
[1740204387577,0.01051909,96700.0,96699.0,0.16200436]
[1740204387789,0.01351909,96700.0,96699.0,0.16200436]
[1740204388202,0.01051909,96700.0,96699.0,0.16200436]
[1740204390545,0.01051909,96700.0,96699.0,0.17254985]
[1740204390769,0.01051909,96700.0,96699.0,0.17354985]
[1740204391028,0.01051909,96700.0,96699.0,0.00788436]
[1740204391747,0.01051909,96700.0,96699.0,0.16300436]
[1740204391987,0.01051909,96700.0,96699.0,0.16030436]
[1740204392230,0.01051909,96700.0,96699.0,0.16289306]
[1740204392463,0.01051909,96700.0,96699.0,0.01826582]
[1740204393163,0.01051909,96700.0,96699.0,0.17338582]
[1740204394357,0.01051909,96700.0,96699.0,0.16828582]
[1740204394584,0.01051909,96700.0,96699.0,0.17229583]
[1740204396831,0.01051909,96700.0,96699.0,0.17359723]
[1740204397257,0.01136979,96700.0,96699.0,0.17359723]
[1740204397916,0.01136979,96700.0,96699.0,0.00798447]
[1740204398458,0.0008507,96700.0,96699.0,0.00798447]
[1740204399163,0.0008507,96700.0,96699.0,0.16310447]
[1740204399381,0.0008507,96700.0,96699.0,0.15258538]
[1740204399525,0.0008507,96700.0,96699.0,0.15660561]
[1740204400169,0.0008507,96700.0,96699.0,0.00632023]
[1740204400960,0.0008507,96700.0,96696.0,0.206833]
[1740204401170,0.0008507,96700.0,96699.0,0.16144023]
[1740204401371,0.0008507,96700.0,96699.0,0.15512]
[1740204401609,0.0008507,96700.0,96699.0,0.16144023]
[1740204401719,0.0008507,96700.0,96699.0,0.00632023]
[1740204402136,0.0008507,96700.0,96697.0,0.155123]
[1740204402332,0.0008507,96700.0,96698.0,0.00632023]
[1740204402771,0.0008507,96700.0,96696.0,0.155125]
[1740204403016,0.0008507,96700.0,96699.0,0.00632023]
[1740204403223,0.0008507,96700.0,96686.0,0.09101519]
[1740204403427,0.0008507,96700.0,96686.0,0.29787019]
[1740204403623,0.1559697,96700.0,96688.0,0.155138]
[1740204403902,0.1559697,96700.0,96697.0,0.001]
[1740204404082,0.0008507,96700.0,96697.0,0.001]
[1740204404287,0.155126,96696.0,96682.0,0.206863]
[1740204404495,0.155122,96698.0,96689.0,0.155136]
[1740204405011,0.0008507,96700.0,96686.0,0.206853]
[1740204405224,0.0038507,96700.0,96690.0,0.155134]
[1740204405407,0.1579707,96700.0,96690.0,0.155134]
[1740204405589,0.01573403,96700.0,96690.0,0.155134]
[1740204405806,0.15512,96699.0,96689.0,0.155136]
[1740204406010,0.0028507,96700.0,96680.0,0.18913964]
[1740204406374,0.0008507,96700.0,96680.0,0.19957448]
[1740204406597,0.155122,96699.0,96689.0,0.155136]
[1740204406833,0.155122,96699.0,96690.0,0.155134]
[1740204407233,0.001,96698.0,96690.0,0.155134]
[1740204407721,0.155122,96699.0,96690.0,0.155134]
[1740204407926,0.158122,96699.0,96690.0,0.155134]
[1740204408150,0.158122,96699.0,96691.0,0.006321]
[1740204408323,0.002,96699.0,96691.0,0.006321]
[1740204408546,0.155123,96697.0,96691.0,0.006321]
[1740204409189,0.155123,96697.0,96689.0,0.155135]
[1740204409358,0.2076777,96700.0,96690.0,0.155133]
[1740204409570,0.155125,96696.0,96689.0,0.0017014]
[1740204409907,0.001,96698.0,96691.0,0.006321]
[1740204410110,0.155123,96697.0,96690.0,0.16145953]
[1740204410323,0.155123,96697.0,96689.0,0.1568374]
[1740204410551,0.155123,96697.0,96691.0,0.00632553]
[1740204410752,0.155128,96694.0,96689.0,0.0017014]
[1740204410952,0.155128,96694.0,96692.0,0.00632553]
[1740204411174,0.155128,96694.0,96689.0,0.0017014]
[1740204411381,0.155128,96694.0,96693.0,0.00632553]
[1740204411538,0.155128,96694.0,96689.0,0.0017014]
[1740204411736,0.155128,96694.0,96690.0,0.00632553]
[1740204412128,0.155131,96693.0,96690.0,0.00632553]
[1740204412328,0.001,96697.0,96690.0,0.00632553]
[1740204412329,0.207831,96697.0,96690.0,0.00632553]
[1740204412529,0.155125,96696.0,96690.0,0.00632553]
[1740204412788,0.206833,96696.0,96690.0,0.00632553]
[1740204412959,0.155129,96694.0,96690.0,0.00632553]
[1740204413363,0.206833,96696.0,96690.0,0.00632553]
[1740204413568,0.155126,96696.0,96690.0,0.00632553]
[1740204413812,0.155129,96694.0,96690.0,0.00632553]
[1740204413983,0.155126,96696.0,96690.0,0.00632553]
[1740204414164,0.0008507,96700.0,96690.0,0.001]
[1740204414386,0.0008507,96700.0,96689.0,0.0017014]
[1740204414589,0.155127,96695.0,96689.0,0.0017014]
[1740204414823,0.155127,96695.0,96690.0,0.00632553]
[1740204415132,0.0008507,96700.0,96690.0,0.00632553]
[1740204415333,0.155129,96694.0,96690.0,0.00632553]
[1740204415540,0.155129,96694.0,96689.0,0.0017014]
[1740204415758,0.155129,96694.0,96691.0,0.00632553]
[1740204415971,0.155129,96694.0,96689.0,0.0017014]
[1740204416142,0.155129,96694.0,96692.0,0.00632553]
[1740204416354,0.15513,96693.0,96692.0,0.00632553]
[1740204416559,0.155128,96694.0,96692.0,0.00632553]
[1740204416770,0.001,96695.0,96689.0,0.0017014]
[1740204416996,0.155129,96694.0,96693.0,0.00632553]
[1740204417298,0.155129,96694.0,96689.0,0.0017014]
[1740204417446,0.155129,96694.0,96692.0,0.001]
[1740204417654,0.155129,96694.0,96690.0,0.00632553]
[1740204417887,0.155129,96694.0,96689.0,0.0017014]
[1740204418089,0.155129,96694.0,96691.0,0.00632553]
[1740204418289,0.15513,96693.0,96689.0,0.0017014]
[1740204418532,0.15513,96693.0,96692.0,0.00632553]
[1740204418723,0.15513,96693.0,96689.0,0.0017014]
[1740204418926,0.15513,96693.0,96692.0,0.00632553]
[1740204419125,0.15513,96693.0,96689.0,0.0017014]
[1740204419536,0.15513,96693.0,96690.0,0.00632553]
[1740204419743,0.01037574,96699.0,96690.0,0.00632553]
[1740204419946,0.155132,96692.0,96690.0,0.00632553]
[1740204422611,0.155132,96692.0,96690.0,0.00732553]
[1740204423321,0.155131,96693.0,96690.0,0.00732553]
[1740204424327,0.155131,96693.0,96690.0,0.00632553]
[1740204425314,0.155132,96692.0,96690.0,0.00632553]
[1740204426200,0.206839,96694.0,96690.0,0.00632553]
[1740204426595,0.155131,96692.0,96690.0,0.00632553]
[1740204426796,0.155131,96692.0,96690.0,0.01781087]
[1740204427674,0.155131,96692.0,96690.0,0.01681087]
[1740204427788,0.155131,96692.0,96690.0,0.01048534]
[1740204427987,0.305131,96692.0,96691.0,0.00632633]
[1740204428208,0.155134,96690.0,96689.0,0.0017014]
[1740204429574,0.155134,96690.0,96689.0,0.0027014]
[1740204429923,0.305134,96690.0,96689.0,0.0027014]
[1740204430087,0.40777969,96690.0,96689.0,0.0027014]
[1740204430444,0.40777969,96690.0,96689.0,0.0037014]
[1740204430852,0.51042538,96690.0,96689.0,0.0027014]
[1740204431096,0.51042538,96690.0,96689.0,0.0017014]
[1740204432194,0.51042538,96690.0,96689.0,0.0027014]
[1740204432363,0.51042538,96690.0,96689.0,0.0017014]
[1740204433571,0.83192538,96690.0,96689.0,0.0017014]
[1740204434160,0.83092538,96690.0,96689.0,0.0017014]
[1740204434422,0.83692538,96690.0,96689.0,0.0017014]
[1740204435166,0.84092538,96690.0,96689.0,0.0017014]
[1740204451760,0.84092538,96690.0,96689.0,0.0021014]
[1740204453849,0.84740236,96690.0,96689.0,0.0021014]
[1740204454219,0.86360374,96690.0,96689.0,0.0021014]
[1740204455519,0.85712676,96690.0,96689.0,0.0021014]
[1740204455967,0.84712676,96690.0,96689.0,0.0021014]
[1740204456347,0.85312676,96690.0,96689.0,0.0021014]
[1740204456582,0.84712676,96690.0,96689.0,0.0021014]
[1740204456732,0.83092538,96690.0,96689.0,0.0021014]
[1740204456932,0.83692538,96690.0,96689.0,0.0031014]
[1740204457252,0.84392538,96690.0,96689.0,0.0031014]
[1740204457802,0.83692538,96690.0,96689.0,0.0031014]
[1740204458219,0.84392538,96690.0,96689.0,0.0031014]
[1740204458667,0.83792538,96690.0,96689.0,0.0021014]
[1740204459073,0.84392538,96690.0,96689.0,0.0021014]
[1740204460092,0.305151,96680.0,96674.0,0.00048845]
[1740204460238,0.80018369,96680.0,96674.0,0.00048845]
[1740204461234,0.80518369,96680.0,96674.0,0.00048845]
[1740204462150,0.81366084,96680.0,96674.0,0.00048845]
[1740204462777,0.81366084,96680.0,96679.0,1.8e-06]
[1740204470333,0.81451134,96680.0,96679.0,1.8e-06]
[1740204472776,0.15,96679.0,96674.0,0.00048845]
[1740204472978,0.305159,96675.0,96674.0,0.00048845]
[1740204473129,0.40780469,96675.0,96674.0,0.00048845]
[1740204474621,0.41180469,96675.0,96674.0,0.00048845]
[1740204475032,0.41828184,96675.0,96674.0,0.00048845]
[1740204475200,0.73878184,96675.0,96674.0,0.00048845]
[1740204475402,0.84142753,96675.0,96674.0,0.00048845]
[1740204477886,0.83495038,96675.0,96674.0,0.00048845]
[1740204487573,0.83495038,96675.0,96674.0,8.845e-05]
[1740204496315,0.91335038,96675.0,96674.0,8.845e-05]
[1740204496542,0.83495038,96675.0,96674.0,8.845e-05]
[1740204502658,0.83095038,96675.0,96674.0,8.845e-05]
[1740204502861,0.83695038,96675.0,96674.0,8.845e-05]
[1740204503622,0.83295038,96675.0,96674.0,8.845e-05]
[1740204505416,0.83695038,96675.0,96674.0,8.845e-05]
[1740204505820,0.83095038,96675.0,96674.0,8.845e-05]
[1740204506023,0.83495038,96675.0,96674.0,8.845e-05]
[1740204506227,0.83095038,96675.0,96674.0,8.845e-05]
[1740204506436,0.83180098,96675.0,96674.0,8.845e-05]
[1740204506869,0.83880098,96675.0,96674.0,8.845e-05]
[1740204507207,0.155178,96663.0,96662.0,8.925e-05]
[1740204507413,0.155178,96663.0,96662.0,0.00021844]
[1740204508644,0.157178,96663.0,96662.0,0.00021844]
[1740204511531,0.156178,96663.0,96662.0,0.00021844]
[1740204511927,0.159178,96663.0,96662.0,0.00021844]
[1740204517748,0.36752846,96663.0,96662.0,0.00021844]
[1740204518137,0.47017415,96663.0,96662.0,0.00021844]
[1740204521071,0.41182369,96663.0,96662.0,0.00021844]
[1740204522717,0.73232369,96663.0,96662.0,0.00021844]
[1740204523344,0.629678,96663.0,96662.0,0.00021844]
[1740204528543,0.15,96656.0,96652.0,0.06448025]
[1740204528736,0.305189,96656.0,96652.0,0.06430662]
[1740204529308,0.155192,96654.0,96652.0,0.06430662]
[1740204530479,0.151,96656.0,96652.0,0.06430662]
[1740204530693,0.155191,96655.0,96652.0,0.06430662]
[1740204532314,0.24838637,96655.0,96652.0,0.06430662]
[1740204533732,0.23641454,96654.0,96652.0,0.06430662]
[1740204534508,0.09319537,96655.0,96652.0,0.06430662]
[1740204534738,0.09319537,96655.0,96653.0,0.00638075]
[1740204534940,0.09319537,96655.0,96652.0,0.06430662]
[1740204535478,0.09319537,96655.0,96653.0,0.00638088]
[1740204535926,0.09319537,96655.0,96652.0,0.06430662]
[1740204536135,0.155191,96655.0,96654.0,0.00638088]
[1740204536354,0.09319537,96656.0,96652.0,0.06430662]
[1740204536928,0.155191,96655.0,96653.0,0.00638086]
[1740204537131,0.155191,96655.0,96652.0,0.06430662]
[1740204540230,0.24838637,96655.0,96652.0,0.06430662]
[1740204541184,0.24838637,96655.0,96652.0,0.00043089]
[1740204541381,0.24838637,96655.0,96652.0,0.00213209]
[1740204543530,0.155192,96654.0,96652.0,0.00213209]
[1740204543952,0.09319537,96653.0,96652.0,0.00213209]
[1740204548272,0.24838937,96653.0,96652.0,0.00213209]
[1740204551194,0.09319537,96653.0,96652.0,0.00213209]
[1740204551396,0.24838937,96653.0,96652.0,0.00213209]
[1740204551598,0.28428746,96653.0,96652.0,0.00213209]
[1740204552022,0.24838937,96653.0,96652.0,0.00213209]
[1740204552414,0.39838937,96653.0,96652.0,0.00213209]
[1740204554200,0.50203506,96653.0,96652.0,0.00213209]
[1740204555066,0.40883969,96653.0,96652.0,0.00213209]
[1740204555510,0.72933969,96653.0,96652.0,0.00213209]
[1740204555840,0.83198538,96653.0,96652.0,0.00213209]
[1740204558543,0.83098538,96653.0,96652.0,0.00213209]
[1740204558751,0.83398538,96653.0,96652.0,0.00213209]
[1740204564604,0.83298538,96653.0,96652.0,0.00213209]
[1740204565059,0.83398538,96653.0,96652.0,0.00213209]
[1740204565257,0.83698538,96653.0,96652.0,0.00213209]
[1740204565480,0.83398538,96653.0,96652.0,0.00213209]
[1740204565666,0.83098538,96653.0,96652.0,0.00213209]
[1740204565931,0.83498538,96653.0,96652.0,0.00213209]
[1740204566114,0.83898538,96653.0,96652.0,0.00213209]
[1740204566319,0.83983618,96653.0,96652.0,0.00213209]
[1740204622146,0.85604576,96653.0,96652.0,0.00213209]
[1740204626795,0.85204576,96653.0,96652.0,0.00213209]
[1740204626929,0.84804576,96653.0,96652.0,0.00213209]
[1740204627137,0.85804576,96653.0,96652.0,0.00213209]
[1740204627492,0.85304576,96653.0,96652.0,0.00213209]
[1740204627699,0.85504576,96653.0,96652.0,0.00213209]
[1740204627911,0.86204576,96653.0,96652.0,0.00213209]
[1740204628111,0.84583618,96653.0,96652.0,0.00213209]
[1740204631459,0.86204577,96653.0,96652.0,0.00213209]
[1740204636579,0.84583618,96653.0,96652.0,0.00213209]
[1740204641204,0.86204585,96653.0,96652.0,0.00213209]
[1740204641651,0.87283525,96653.0,96652.0,0.00213209]
[1740204642409,0.85883525,96653.0,96652.0,0.00213209]
[1740204642892,0.87283525,96653.0,96652.0,0.00213209]
[1740204643087,0.86583525,96653.0,96652.0,0.00213209]
[1740204644062,0.87283525,96653.0,96652.0,0.00213209]
[1740204645129,0.77018956,96653.0,96652.0,0.00213209]
[1740204648163,0.75397989,96653.0,96652.0,0.00213209]
[1740204649114,0.85707989,96653.0,96652.0,0.00213209]
[1740204649478,0.90464149,96653.0,96652.0,0.00213209]
[1740204649483,0.87162074,96653.0,96652.0,0.00213209]
[1740204649808,0.97426643,96653.0,96652.0,0.00213209]
[1740204649982,0.95426643,96653.0,96652.0,0.00213209]
[1740204650363,0.97426643,96653.0,96652.0,0.00213209]
[1740204651171,0.9904766,96653.0,96652.0,0.00213209]
[1740204651977,0.9704766,96653.0,96652.0,0.00213209]
[1740204652979,0.9904766,96653.0,96652.0,0.00213209]
[1740204662047,0.87283575,96653.0,96652.0,0.00213209]
[1740204662656,0.77019006,96653.0,96652.0,0.00213209]
[1740204662806,0.74319049,96653.0,96652.0,0.00213209]
[1740204664879,0.74319049,96653.0,96652.0,0.08323209]
[1740204665566,0.0148508,96653.0,96652.0,0.08323209]
[1740204665788,0.0148508,96653.0,96652.0,0.28692709]
[1740204665998,0.0148508,96653.0,96652.0,0.13916226]
[1740204666643,0.3130448,96653.0,96652.0,0.13916226]
[1740204666866,0.81027225,96653.0,96652.0,0.00956226]
[1740204667065,0.81027225,96653.0,96652.0,0.00213209]
[1740204667703,0.80327225,96653.0,96652.0,0.00213209]
[1740204668130,0.81027225,96653.0,96652.0,0.00213209]
[1740204668388,0.80327225,96653.0,96652.0,0.00213209]
[1740204668563,0.81027225,96653.0,96652.0,0.00213209]
[1740204668907,0.80327225,96653.0,96652.0,0.00213209]
[1740204669114,0.80327225,96653.0,96652.0,0.00313209]
[1740204669656,0.73619049,96653.0,96652.0,0.00213209]
[1740204669998,0.74319049,96653.0,96652.0,0.00213209]
[1740204670596,0.75939927,96653.0,96652.0,0.00213209]
[1740204677839,0.74319049,96653.0,96652.0,0.00213209]
[1740204681209,0.75939933,96653.0,96652.0,0.00213209]
[1740204681407,0.86204502,96653.0,96652.0,0.00213209]
[1740204687376,0.84583618,96653.0,96652.0,0.00213209]
[1740204687776,0.84583618,96653.0,96652.0,0.00713209]
[1740204691993,0.86204475,96653.0,96652.0,0.00713209]
[1740204693721,0.75939906,96653.0,96652.0,0.00713209]
[1740204697831,0.74319049,96653.0,96652.0,0.00713209]
[1740204731214,0.75939943,96653.0,96652.0,0.00713209]
[1740204735521,0.74319049,96653.0,96652.0,0.00713209]
[1740204747000,0.75773134,96653.0,96652.0,0.00713209]
[1740204747579,0.86037703,96653.0,96652.0,0.00713209]
[1740204750761,0.75773134,96653.0,96652.0,0.00713209]
[1740204761617,0.77394028,96653.0,96652.0,0.00713209]
[1740204768326,0.75773134,96653.0,96652.0,0.00713209]
[1740204776140,0.75785134,96653.0,96652.0,0.00713209]
[1740204795584,0.75745981,96653.0,96652.0,0.00713209]
[1740204807141,0.45180654,96653.0,96652.0,0.00713209]
[1740204807353,0.60700054,96653.0,96652.0,0.00713209]
[1740204810386,0.75700054,96653.0,96652.0,0.00713209]
[1740204810767,0.75785094,96653.0,96652.0,0.00713209]
[1740204831328,0.75085094,96653.0,96652.0,0.00713209]
[1740204831536,0.74385094,96653.0,96652.0,0.00713209]
[1740204831736,0.75685094,96653.0,96652.0,0.00713209]
[1740204834340,0.3344704,96653.0,96652.0,0.08433209]
[1740204834699,0.3344704,96653.0,96652.0,0.09145073]
[1740204834905,0.34901125,96653.0,96652.0,0.09145073]
[1740204835753,0.34301125,96653.0,96652.0,0.09145073]
[1740204836517,0.33601125,96653.0,96652.0,0.09145073]
[1740204836781,0.34301125,96653.0,96652.0,0.13835073]
[1740204836986,0.02251125,96653.0,96652.0,0.13835073]
[1740204837101,0.02051125,96653.0,96652.0,0.13835073]
[1740204837298,0.02751125,96653.0,96652.0,0.13835073]
[1740204837542,0.02251125,96653.0,96652.0,0.13835073]
[1740204837747,0.02251125,96653.0,96652.0,0.13959217]
[1740204837921,0.02651125,96653.0,96652.0,0.13835073]
[1740204838176,0.02651125,96653.0,96652.0,0.13959216]
[1740204838537,0.02251125,96653.0,96652.0,0.13835073]
[1740204838763,0.02251125,96653.0,96652.0,0.13959216]
[1740204838960,0.02351125,96653.0,96652.0,0.29478716]
[1740204839167,0.02351125,96653.0,96652.0,0.29354573]
[1740204839488,0.01651125,96653.0,96652.0,0.29354573]
[1740204839912,0.02151125,96653.0,96652.0,0.29354573]
[1740204840121,0.02151125,96653.0,96652.0,0.13835073]
[1740204840238,0.02151125,96653.0,96652.0,0.29478712]
[1740204840444,0.02151125,96653.0,96652.0,0.29354573]
[1740204842961,0.01651125,96653.0,96652.0,0.29354573]
[1740204843168,0.01951125,96653.0,96652.0,0.29354573]
[1740204843622,0.01551125,96653.0,96652.0,0.29354573]
[1740204843825,0.01751125,96653.0,96652.0,0.29354573]
[1740204844194,0.01751125,96653.0,96652.0,0.29554573]
[1740204846261,0.01751125,96653.0,96652.0,0.14035073]
[1740204846460,0.01751125,96653.0,96652.0,0.2967871]
[1740204846666,0.01751125,96653.0,96652.0,0.29554573]
[1740204847317,0.01751125,96653.0,96652.0,0.14035073]
[1740204847611,0.01751125,96653.0,96652.0,0.14159211]
[1740204848338,0.01751125,96653.0,96652.0,0.14035073]
[1740204855135,0.01751125,96653.0,96652.0,0.14159212]
[1740204858118,0.01751125,96653.0,96652.0,0.14035073]
[1740204858662,0.01751125,96653.0,96652.0,0.14159211]
[1740204859718,0.01751125,96653.0,96652.0,0.29554573]
[1740204864603,0.0029704,96653.0,96652.0,0.29554573]
[1740204892241,0.0029704,96653.0,96652.0,0.39819142]
[1740204893144,0.0029704,96653.0,96652.0,0.39619142]
[1740204893346,0.0029704,96653.0,96652.0,0.39819142]
[1740204893507,0.0029704,96653.0,96652.0,0.41761301]
[1740204893847,0.0009704,96653.0,96652.0,0.41561301]
[1740204894078,0.0009704,96653.0,96652.0,0.41761301]
[1740204894280,0.0019704,96653.0,96652.0,0.41961301]
[1740204894816,0.0019704,96653.0,96652.0,0.42701301]
[1740204895028,0.0019704,96653.0,96652.0,0.40759142]
[1740204896222,0.0019704,96653.0,96652.0,0.33039142]
[1740204898108,0.0019704,96653.0,96652.0,0.34980176]
[1740204899442,0.0019704,96653.0,96652.0,0.33039142]
[1740204917743,0.0019704,96653.0,96652.0,0.28349142]
[1740204944650,0.0018504,96653.0,96652.0,0.28349142]
[1740204964051,0.0018504,96653.0,96652.0,0.18084573]
[1740204964255,0.0018504,96653.0,96652.0,0.18208706]
[1740204965382,0.1570444,96653.0,96652.0,0.01825073]
[1740204965791,0.01639125,96653.0,96652.0,0.01113209]
[1740204966204,0.01539125,96653.0,96652.0,0.00713209]
[1740204966408,0.01639125,96653.0,96652.0,0.01113209]
[1740204966619,0.01639125,96653.0,96652.0,0.01213209]
[1740204966832,0.01539125,96653.0,96652.0,0.00713209]
[1740204967160,0.01539125,96653.0,96652.0,0.01213209]
[1740204968523,0.0008504,96653.0,96652.0,0.01213209]
[1740204968946,0.0008504,96653.0,96652.0,0.00813209]
[1740204969108,0.0008504,96653.0,96652.0,0.00713209]
[1740204969309,0.0008504,96653.0,96652.0,0.01113209]
[1740204971090,0.02593593,96653.0,96652.0,0.01113209]
[1740204972282,0.01539125,96653.0,96652.0,0.01113209]
[1740204972527,0.18098615,96653.0,96652.0,0.01113209]
[1740204972763,0.40513184,96653.0,96652.0,0.01113209]
[1740204973477,0.40613184,96653.0,96652.0,0.00713209]
[1740204973648,0.40613184,96653.0,96652.0,0.01013209]
[1740204973877,0.40513184,96653.0,96652.0,0.01013209]
[1740204974064,0.48973491,96653.0,96652.0,0.01013209]
[1740204974553,0.48873491,96653.0,96652.0,0.01013209]
[1740204975014,0.48873491,96653.0,96652.0,0.00713209]
[1740204975408,0.48973491,96653.0,96652.0,0.00713209]
[1740204975823,0.49373491,96653.0,96652.0,0.00713209]
[1740204977235,0.81423491,96653.0,96652.0,0.00713209]
[1740204986815,0.73063184,96653.0,96652.0,0.00713209]
[1740204987718,0.73063184,96653.0,96652.0,0.00433209]
[1740204997372,0.73063184,96653.0,96652.0,0.00603289]
[1740205004433,0.60913184,96653.0,96652.0,0.00603289]
[1740205005173,0.35129215,96653.0,96652.0,0.00603289]
[1740205005504,0.3367513,96653.0,96652.0,0.00603289]
[1740205005931,0.3367513,96653.0,96652.0,0.13163289]
[1740205005932,0.35129215,96653.0,96652.0,0.13163289]
[1740205006053,0.35129215,96653.0,96652.0,0.29363872]
[1740205006054,0.3263504,96653.0,96652.0,0.29363872]
[1740205006864,0.0058504,96653.0,96652.0,0.29363872]
[1740205007069,0.0008504,96653.0,96652.0,0.29363872]
[1740205007282,0.0038504,96653.0,96652.0,0.29363872]
[1740205008697,0.0038504,96653.0,96652.0,0.29463872]
[1740205008908,0.0008504,96653.0,96652.0,0.29463872]
[1740205009316,0.0018504,96653.0,96652.0,0.29463872]
[1740205010145,0.0018504,96653.0,96652.0,0.29363872]
[1740205010346,0.0018504,96653.0,96652.0,0.14044372]
[1740205011928,0.0018504,96653.0,96652.0,0.29563872]
[1740205012159,0.0018504,96653.0,96652.0,0.14044372]
[1740205012549,0.1570444,96653.0,96652.0,0.14044372]
[1740205012728,0.1570444,96653.0,96652.0,0.06082372]
[1740205013033,0.1570444,96653.0,96652.0,0.06081243]
[1740205013813,0.1570444,96653.0,96652.0,0.05881243]
[1740205014025,0.1570444,96653.0,96652.0,0.06081243]
[1740205014227,0.1560444,96653.0,96652.0,0.06081243]
[1740205016201,0.0028504,96653.0,96652.0,0.06081243]
[1740205016406,0.1580444,96653.0,96652.0,0.06081243]
[1740205016606,0.1580444,96653.0,96652.0,0.05401289]
[1740205018351,0.1580444,96653.0,96652.0,0.00791289]
[1740205018560,0.17258525,96653.0,96652.0,0.00791289]
[1740205019369,0.17058525,96653.0,96652.0,0.00791289]
[1740205019551,0.17258525,96653.0,96652.0,0.00701289]
[1740205020375,0.17058525,96653.0,96652.0,0.00701289]
[1740205020619,0.17058525,96653.0,96652.0,0.00501289]
[1740205020856,0.17458525,96653.0,96652.0,0.00601289]
[1740205021211,0.17458525,96653.0,96652.0,0.00501289]
[1740205021636,0.17558525,96653.0,96652.0,0.00501289]
[1740205025179,0.18581589,96653.0,96652.0,0.00501289]
[1740205025380,0.17558525,96653.0,96652.0,0.00501289]
[1740205044007,0.17558525,96653.0,96652.0,0.00411289]
[1740205046195,0.17558525,96653.0,96652.0,0.00281289]
[1740205051028,0.21004685,96653.0,96652.0,0.00281289]
[1740205052682,0.17558525,96653.0,96652.0,0.00281289]
[1740205070324,0.17426257,96653.0,96652.0,0.00281289]
[1740205078924,0.17511297,96653.0,96652.0,0.00281289]
[1740205087718,0.26825861,96653.0,96652.0,0.00281289]
[1740205099593,0.17511297,96653.0,96652.0,0.00281289]
[1740205101282,0.17511297,96653.0,96652.0,0.00181289]
[1740205107625,0.38040435,96653.0,96652.0,0.00181289]
[1740205108448,0.37940435,96653.0,96652.0,0.00181289]
[1740205108908,0.38140435,96653.0,96652.0,0.00181289]
[1740205109090,0.37740435,96653.0,96652.0,0.00181289]
[1740205109515,0.38240435,96653.0,96652.0,0.00181289]
[1740205110803,0.39861274,96653.0,96652.0,0.00181289]
[1740205116704,0.38240435,96653.0,96652.0,0.00181289]
[1740205121041,0.39861273,96653.0,96652.0,0.00181289]
[1740205125547,0.95041273,96653.0,96652.0,0.00181289]
[1740205125792,0.97940435,96653.0,96652.0,8.9e-07]
[1740205126795,0.97440435,96653.0,96652.0,8.9e-07]
[1740205126962,0.98140435,96653.0,96652.0,8.9e-07]
[1740205127935,0.97940435,96653.0,96652.0,8.9e-07]
[1740205128291,0.98340435,96653.0,96652.0,8.9e-07]
[1740205130198,0.99961334,96653.0,96652.0,8.9e-07]
[1740205144614,0.95441334,96653.0,96652.0,8.9e-07]
[1740205146711,0.93820435,96653.0,96652.0,8.9e-07]
[1740205151043,0.95441318,96653.0,96652.0,8.9e-07]
[1740205158530,0.93820435,96653.0,96652.0,8.9e-07]
[1740205163057,0.95441401,96653.0,96652.0,8.9e-07]
[1740205164608,0.87311401,96653.0,96652.0,8.9e-07]
[1740205166615,0.85690435,96653.0,96652.0,8.9e-07]
[1740205169765,0.87311364,96653.0,96652.0,8.9e-07]
[1740205178243,0.85690435,96653.0,96652.0,8.9e-07]
[1740205180939,0.75425866,96653.0,96652.0,8.9e-07]
[1740205181284,0.77046771,96653.0,96652.0,8.9e-07]
[1740205182858,0.50328117,96653.0,96652.0,0.12530089]
[1740205183482,0.51782202,96653.0,96652.0,0.12530089]
[1740205183683,0.50328117,96653.0,96652.0,0.12530089]
[1740205184295,0.51782202,96653.0,96652.0,0.12530089]
[1740205186606,0.50161297,96653.0,96652.0,0.12530089]
[1740205186810,0.59474519,96653.0,96652.0,0.12530089]
[1740205191057,0.50161297,96653.0,96652.0,0.12530089]
[1740205196567,0.50161297,96653.0,96652.0,0.04640089]
[1740205203302,0.50161297,96653.0,96652.0,8.9e-07]
[1740205213000,0.34689125,96653.0,96652.0,8.9e-07]
[1740205213208,0.02639125,96653.0,96652.0,0.04810089]
[1740205213404,0.0118504,96653.0,96652.0,0.12630089]
[1740205213632,0.0118504,96653.0,96652.0,0.13311774]
[1740205214355,0.0008504,96653.0,96652.0,0.13311774]
[1740205214563,0.0028504,96653.0,96652.0,0.13411774]
[1740205217668,0.0028504,96653.0,96652.0,0.28931274]
[1740205217821,0.0028504,96653.0,96652.0,0.13411774]
[1740205218787,0.0028504,96653.0,96652.0,0.29055415]
[1740205218988,0.0028504,96653.0,96652.0,0.28931274]
[1740205219203,0.0028504,96653.0,96652.0,0.13411774]
[1740205219429,0.0028504,96653.0,96652.0,0.13535915]
[1740205220283,0.0028504,96653.0,96652.0,0.13411774]
[1740205257397,0.0028504,96653.0,96652.0,0.05591774]
[1740205262714,0.0028504,96653.0,96652.0,0.05715916]
[1740205264984,0.0028504,96653.0,96652.0,0.05591774]
[1740205267681,0.0028504,96653.0,96652.0,0.21111274]
[1740205268441,0.0028504,96653.0,96652.0,0.39285843]
[1740205268850,0.0028504,96653.0,96652.0,0.40063065]
[1740205269061,0.0028504,96653.0,96652.0,0.55063065]
[1740205269421,0.0008504,96653.0,96652.0,0.91203065]
[1740205269649,0.0028504,96653.0,96652.0,0.91203065]
[1740205269857,0.0008504,96653.0,96652.0,0.90425843]
[1740205270124,0.0008504,96653.0,96652.0,0.90325843]
[1740205270346,0.0008504,96653.0,96652.0,0.90625843]
[1740205270894,0.0008504,96653.0,96652.0,0.91165843]
[1740205271093,0.0018504,96653.0,96652.0,0.91465843]
[1740205271618,0.0018504,96653.0,96652.0,0.91365843]
[1740205271824,0.0028504,96653.0,96652.0,0.91465843]
[1740205273115,0.0028504,96653.0,96652.0,0.90725843]
[1740205273323,0.0028504,96653.0,96652.0,0.91465843]
[1740205273558,0.0018504,96653.0,96652.0,0.91165843]
[1740205273972,0.0028504,96653.0,96652.0,0.91465843]